Cogmind - Beta 16.1 @@@ ROGUE MODE // 2026.04.25 @ 00:54:12 Player: AngelSpirit Result: Destroyed by FM-1MD(R) with Subdweller Machine Gun Performance ------------- Evolutions (0) 0 Regions Visited (2) 400 Robots Destroyed (39) 195 Value Destroyed (948) 948 Prototype IDs (15) 300 Alien Tech Used (0) 0 Bonus (0) 0 TOTAL SCORE: 1843 Bonus ------- None Cogmind --------- Core Integrity 0/250 Matter 120/300 Energy 265/265 System Corruption 0% Temperature Cool (0) Movement Treading (320) Ox2 Location -10/Subcaves Parts ------- > --- POWER (1) -------- Reinforced Ion Engine > --- PROPULSION (2) --- Light Treads Light Treads > --- UTILITY (2) ------ Huge Storage Unit Sensor Array > --- WEAPON (2) ------- Improved Light Cannon Improved Light Cannon > --- INVENTORY (25) --- Subdweller Power Source Subdweller Power Source Light Treads Wheel Wheel Wheel Wheel Compact Wheel Large Storage Unit Machine Analyzer Seismic Detector Seismic Detector Hacking Suite Trap Extractor (3/4 Blade) Rainbow Chip Subdweller Laser Subdweller Laser Subdweller Machine Gun Grenade Launcher Datajack Mining Laser Maul Makeshift Sword Peak State ------------ > --- POWER ------------ Reinforced Ion Engine > --- PROPULSION ------- Wheel Compact Wheel > --- UTILITY ---------- Huge Storage Unit Sensor Array > --- WEAPON ----------- Improved Light Cannon Improved Light Cannon > --- INVENTORY -------- Subdweller Power Source Subdweller Power Source Light Treads Light Treads Light Treads Wheel Wheel Wheel Large Storage Unit Machine Analyzer Seismic Detector Seismic Detector Hacking Suite Trap Extractor Rainbow Chip Subdweller Laser Subdweller Laser Subdweller Machine Gun Grenade Launcher Datajack Mining Laser Maul Makeshift Sword [Rating: 14] Favorites ----------- Power Reinforced Ion Engine Engine Reinforced Ion Engine Propulsion Wheel Treads Light Treads Wheel Wheel Utility Huge Storage Unit Device Seismic Detector Storage Huge Storage Unit Protection Backup Plating I Weapon Improved Light Cannon Energy Gun Beam Rifle Ballistic Gun Light Assault Rifle Ballistic Cannon Improved Light Cannon Launcher Grenade Launcher Special Melee Weapon Datajack Build | -11 -10 -10 ------- Run | Yrd Mat Sub Slots Evolved . | . . . Power . | . . . Propulsion . | . . . Utility . | . . . Weapon . | . . . Parts Attached 28 | 6 17 5 Power 3 | 1 1 1 Engine 3 | 1 1 1 Core . | . . . Reactor . | . . . Propulsion 7 | 2 4 1 Treads 3 | . 2 1 Leg . | . . . Wheel 4 | 2 2 . Hover . | . . . Flight . | . . . Utility 7 | 1 5 1 Device 3 | . 2 1 Storage 3 | 1 2 . Processor . | . . . Hackware . | . . . Protection 1 | . 1 . Artifact . | . . . Weapon 11 | 2 7 2 Energy Gun 2 | . 2 . Energy Cannon . | . . . Ballistic Gun 2 | 2 . . Ballistic Cannon 5 | . 3 2 Launcher 1 | . 1 . Special Weapon . | . . . Impact Weapon . | . . . Slashing Weapon . | . . . Piercing Weapon . | . . . Special Melee Weapon 1 | . 1 . Unidentified Prototypes . | . . . Parts Lost 3 | . . 3 Power 1 | . . 1 Propulsion . | . . . Utility 1 | . . 1 Weapon 1 | . . 1 Highest Loss Streak 2 | . . 2 To Critical Strikes . | . . . Average Backups 16 | 1 14 21 Power 1 | . . 1 Propulsion 5 | 1 4 6 Utility 4 | . 3 6 Weapon 4 | . 4 5 Tool/Special . | . . . Unused Backups 19 | . 4 15 Power 2 | . . 2 Propulsion 4 | . 1 3 Utility 4 | . . 4 Weapon 9 | . 3 6 Tool/Special . | . . . Average Slot Usage (%) 99 | . 99 99 Engine 13 | . 14 13 Treads 2 | . . 5 Wheel 25 | . 27 22 Device 12 | . 13 11 Storage 14 | . 14 14 Energy Gun 4 | . 6 . Ballistic Cannon 22 | . 20 27 Peak Build Rating 14 | 6 13 14 Average Rating 11 | 5 11 12 On Entrance 6 | . 6 12 Avg Prop Armor Cover (%) . | . . . Naked Turns . | . . . Heaviest Build 99 | 10 99 99 Greatest Support 40 | 26 26 40 Greatest Overweight (x) 3 | . 3 3 Average Overweight (x) 2 | . 2 2 Largest Inventory Capacity 25 | 8 25 25 Average Capacity 23 | 7 23 25 Most Carried 23 | 4 22 23 Average Carried 16 | 1 14 21 Final Capacity 25 | 8 25 25 Final Carried 23 | 4 20 23 Class Distribution -------------------- 100% | Mutant Dominant Class ---------------- Mutant | -10/Materials Mutant | -10/Subcaves Resources | -11 -10 -10 ----------- Run | Yrd Mat Sub Matter Collected 1254 | 226 745 283 Remotely . | . . . Salvage Created 875 | 25 693 157 Parts 68 | 4 51 13 Haulers Intercepted 2 | . 2 . Recyclers Shooed . | . . . Parts Field Recycled . | . . . Retrieved Matter . | . . . Parts Self-Destructed . | . . . Prevented . | . . . Parts Restored . | . . . Kills | -11 -10 -10 ------- Run | Yrd Mat Sub Combat Hostiles Destroyed 25 | . 18 7 Guns 3 | . 3 . Cannons 16 | . 9 7 AOE 6 | . 6 . Classes Destroyed 10 | 1 8 1 Builder 1 | . 1 . Tunneler 2 | 1 1 . Hauler 2 | . 2 . Recycler 2 | . 2 . Mechanic 1 | . 1 . Operator 3 | . 3 . Watcher 3 | . 3 . Swarmer 6 | . 6 . Grunt 12 | . 12 . Subdweller 7 | . . 7 Best Kill Streak 6 | 1 6 3 Combat Bots Only 6 | . 6 3 Max Kills in Single Turn 3 | 1 3 1 Gunslinging . | . . . Exploded 3 | . 3 . Melee . | . . . Uniques/NPCs Destroyed . | . . . Combat | -11 -10 -10 -------- Run | Yrd Mat Sub Hostile Shots Fired 98 | . 61 37 Missed 24 | . 16 8 Hits 74 | . 45 29 Projectile 74 | . 45 29 Damage Taken 1250 | . 540 710 Core 262 | . 88 174 Absorbed by Shields . | . . . Core Remaining (%) 100 | 100 . . Volleys Fired 112 | 5 72 35 Largest 2 | 2 2 2 Hottest 86 | 40 86 66 Shots Fired 213 | 10 136 67 Gun 44 | 10 34 . Cannon 166 | . 99 67 Launcher 3 | . 3 . Special . | . . . Kinetic 176 | 10 99 67 Thermal 34 | . 34 . Explosive 3 | . 3 . Electromagnetic . | . . . Robot Hit Streak 12 | 3 11 12 Robot Miss Streak 4 | 4 4 2 Penetration Max . | . . . Secondary Targets . | . . . Shots Hit Robots 126 | 5 82 39 Core Hits 55 | 3 39 13 Critical Kills . | . . . Critical Parts Destroyed . | . . . Critical Strikes 10 | . 5 5 Burn 4 | . 4 . Blast 6 | . 1 5 Melee Attacks 1 | . 1 . Impact . | . . . Slashing . | . . . Piercing . | . . . Sneak Attacks 1 | . 1 . Combat Hostiles . | . . . Follow-up Attacks . | . . . Damage Inflicted 2704 | 51 1763 890 Guns 401 | 51 350 . Cannons 2008 | . 1118 890 Explosions 295 | . 295 . Melee . | . . . Ramming . | . . . Kinetic 2059 | 51 1118 890 Thermal 350 | . 350 . Explosive 295 | . 295 . Electromagnetic . | . . . Impact . | . . . Slashing . | . . . Piercing . | . . . Highest Corruption . | . . . Average Corruption . | . . . Corruption Purged . | . . . Corruption Blocked . | . . . Overload Shots . | . . . Overflow Damage 25 | . 25 . Projectiles 22 | . 22 . Explosions 3 | . 3 . Melee . | . . . Knockbacks 32 | . 12 20 Impact . | . . . Kinetic 27 | . 12 15 Secondary 5 | . . 5 Self-Inflicted Damage 14 | . 14 . Shots 1 | . 1 . Rammed . | . . . Targets Rammed . | . . . Kicked . | . . . Crushed . | . . . Highest Temperature 312 | . 312 . Average Temperature 91 | . 91 . Received Heat Transfer 420 | . 282 138 Effects 1 | . 1 . Interference 1 | . 1 . Siege Activations . | . . . Martial Activations . | . . . Shielding Activations . | . . . Robots Disrupted . | . . . Combat Hostiles . | . . . Robots Corrupted . | . . . Combat Hostiles . | . . . Parts Fried . | . . . Impact Corruptions . | . . . Robots Melted . | . . . Combat Hostiles . | . . . Parts Melted 1 | . 1 . Heat Transferred 1184 | . 1184 . Parts Sabotaged . | . . . Parts Stolen . | . . . Parts Stripped . | . . . Power Chain Reactions . | . . . Alert | -11 -10 -10 ------- Run | Yrd Mat Sub Maximum Alert Level . | . . . Low Security (%) 100 | 100 100 . Level 1 . | . . . Level 2 . | . . . Level 3 . | . . . Level 4 . | . . . Level 5 . | . . . High Security . | . . . Max Security . | . . . Peak Influence 176 | 5 176 . Initial . | . . . Average 119 | . 125 . Influence Increases 686 | 5 681 . Destroy 0b10 Robot/C 360 | . 360 . Destroy 0b10 Robot/NC 70 | 5 65 . Destroy Leader 80 | . 80 . Successful Hack 39 | . 39 . Select Force Hacks 60 | . 60 . Disable Machine 45 | . 45 . Destroy Structure 17 | . 17 . Lose Combat Pursuer 15 | . 15 . Influence Decreases 686 | 5 554 127 Entered New Map 62 | . . 62 Time Decay 624 | 5 554 65 Squads Dispatched 4 | . 4 . Investigation 2 | . 2 . Extermination . | . . . Reinforcement 2 | . 2 . Assault . | . . . Garrison . | . . . Intercept . | . . . Searches Triggered . | . . . Construction Impeded . | . . . Haulers Reinforced . | . . . Active Scanning Responses . | . . . Cargo Convoy Interrupts . | . . . Stealth | -11 -10 -10 --------- Run | Yrd Mat Sub Distress Signals 2 | . 2 . Communications Jammed . | . . . Distress Signals . | . . . Times Spotted 35 | . 27 8 Peak Tracking Total 4 | . 4 3 Tactical Retreats 1 | . 1 . Traps | -11 -10 -10 ------- Run | Yrd Mat Sub Traps Triggered . | . . . Indirectly . | . . . Trap Hack Attempts 35 | . 35 . Triggered . | . . . Disarmed 2 | . 2 . Reprogrammed 3 | . 3 . Reused . | . . . Traps Extracted 3 | . 3 . Installed . | . . . Triggered . | . . . Most Traps Carried 3 | . 3 3 Machines | -11 -10 -10 ---------- Run | Yrd Mat Sub Machines Disabled 5 | . 3 2 Max in Single Turn 1 | . 1 1 Machines Repaired . | . . . Machines Dismantled . | . . . Machines Sabotaged . | . . . Overloaded Fab Kills . | . . . Hacking | -11 -10 -10 --------- Run | Yrd Mat Sub Machines Accessed 10 | . 8 2 Terminals 5 | . 5 . Fabricators . | . . . Repair Stations 1 | . 1 . Recycling Units 2 | . 2 . Scanalyzers . | . . . Garrison Access . | . . . Total Hacks 26 | . 24 2 Successful 17 | . 15 2 Failed 9 | . 9 . Catastrophic . | . . . Database Lockouts . | . . . Manual 14 | . 14 . Terminals 16 | . 16 . Fabricators . | . . . Repair Stations 2 | . 2 . Recycling Units 6 | . 6 . Scanalyzers . | . . . Garrison Access . | . . . Terminal Hacks 7 | . 5 2 Prototype ID Bank 1 | . 1 . Open Door 1 | . . 1 Fabricator Index 1 | . 1 . Locate Traps 3 | . 3 . Proto ID Catalog 1 | . . 1 Fabricator Hacks . | . . . Repair Station Hacks 1 | . 1 . Refit 1 | . 1 . Recycling Unit Hacks 1 | . 1 . Retrieve Components 1 | . 1 . Scanalyzer . | . . . Garrison Access Hacks . | . . . Unauthorized Hacks 8 | . 8 . Terminals 6 | . 6 . Botnet 1 | . 1 . Skim 5 | . 5 . Fabricators . | . . . Repair Stations . | . . . Recycling Units 2 | . 2 . Tunnel 2 | . 2 . Scanalyzers . | . . . Garrison Access . | . . . Data Cores Recovered 1 | . 1 . Used 1 | . 1 . Hacking Detections 7 | . 7 . Full Trace Events 1 | . 1 . Feedback Events . | . . . Feedback Blocked . | . . . Robot Schematics Acquired . | . . . Robots Built . | . . . Authchips . | . . . Time . | . . . Total Robot Build Rating . | . . . Part Schematics Acquired . | . . . Parts Built . | . . . Authchips . | . . . Time . | . . . Total Part Build Rating . | . . . Part Studies Acquired . | . . . Parts Repaired . | . . . Time . | . . . Parts Recycled . | . . . Recycled Matter . | . . . Retrieved Matter . | . . . Retrieved Components 2 | . 2 . Parts Scanalyzed . | . . . Part Schematics Acquired . | . . . Parts Damaged . | . . . Bothacking | -11 -10 -10 ------------ Run | Yrd Mat Sub Used RIF Installer . | . . . Robots Hacked 1 | . 1 . Non-combat 1 | . 1 . Combat . | . . . Robot Hacks Applied 1 | . 1 . parse_system 1 | . 1 . Relay Couplers Released . | . . . Fabnet Peak Effective % . | . . . Robots Rewired . | . . . Allies Hacked . | . . . Hacks Repelled . | . . . Allies | -11 -10 -10 -------- Run | Yrd Mat Sub Total Allies . | . . . Largest Group . | . . . Highest-Rated Group . | . . . Highest-Rated Ally . | . . . Total Orders . | . . . Ally Attacks . | . . . Total Damage . | . . . Kills . | . . . Allies Corrupted . | . . . Allies Melted . | . . . Intel | -11 -10 -10 ------- Run | Yrd Mat Sub Active Infowar (turns) 2343 | . 1651 692 Sensors 682 | . . 682 Seismic 1661 | . 1651 10 Robot Analysis Total . | . . . Derelict Logs Recovered 2 | . . 2 Drone Launches . | . . . Drone Recoveries . | . . . Exploration | -11 -10 -10 ------------- Run | Yrd Mat Sub Turns Passed 2645 | 74 1741 830 Spaces Moved 1362 | 45 876 441 Core 1 | 1 . . Treads 5 | . . 5 Legs . | . . . Wheels 1356 | 44 876 436 Hover . | . . . Flight . | . . . Fastest Speed 50 | 50 90 135 Average Speed 131 | 89 130 137 Slowest Speed 320 | 100 135 320 Overloaded Moves . | . . . Propulsion Burnouts . | . . . Robots Hopped . | . . . Potential Cave-ins . | . . . Cave-ins Triggered . | . . . Exploration Rate (%) 43 | 3 98 29 Regions Visited 2 Branch Regions 1 Pre-discovered Areas 6 | . 5 1 Known Exits Taken 1 | . 1 . Unknown Exits Taken 1 | 1 . . Scrap Searched . | . . . Spaces Dug . | . . . Terrain Destroyed 15 | . 14 1 Melee . | . . . Projectile 1 | . . 1 AOE 14 | . 14 . Terrain Rammed . | . . . Walls Destroyed . | . . . Machines Disabled . | . . . Actions | -11 -10 -10 --------- Run | Yrd Mat Sub Total 1994 | 67 1335 592 Wait 385 | 8 290 87 Move 1360 | 44 875 441 Hop . | . . . Pick Up 32 | 4 21 7 Fast Attach 12 | 6 6 . Attach 4 | . 1 3 Detach 1 | . 1 . Swap 37 | . 19 18 Drop 15 | . 14 1 Fire 112 | 5 72 35 Melee 1 | . 1 . Ram . | . . . Kick . | . . . Crush . | . . . Escape Stasis . | . . . Rewire . | . . . Trap 35 | . 35 . Miscellaneous . | . . . Route ------- -11/Scrapyard -10/Materials (discovered 5 exits: [*Mat x3] / [*Min] / *Sub) -10/Subcaves (discovered 3 exits: *Mat x2 / Rec) History --------- Turn | Location | Event 14 | -11/Scrapyard | Discovered new exit (range 14) 75 | -11/Scrapyard | Entered Materials 257 | -10/Materials | Discovered new exit (range 12) 314 | -10/Materials | Build established: Mutant 618 | -10/Materials | Discovered new exit (range 9) 914 | -10/Materials | Discovered new exit (range 11) 1137 | -10/Materials | Discovered new exit (range 16) 1417 | -10/Materials | Identified exit to Subcaves 1486 | -10/Materials | Learned location of 2 exits from Subcaves 1544 | -10/Materials | Learned location of Mines (-10) 1590 | -10/Materials | Learned Recycling recycling unit intel 1652 | -10/Materials | Learned Storage emergency access door positions 1689 | -10/Materials | Learned location of Storage (-9) 1789 | -10/Materials | Learned Storage security intel 1816 | -10/Materials | Entered Subcaves 1817 | -10/Subcaves | Approached by a straggling Scientist 1817 | -10/Subcaves | Identified exit to Materials 1818 | -10/Subcaves | Identified exit to Recycling 2117 | -10/Subcaves | Learned Materials stockpile data 2198 | -10/Subcaves | Shifting Twisted Machinery released Mak. Sword 2297 | -10/Subcaves | Shifting Twisted Machinery released Battle Cannon 2303 | -10/Subcaves | Learned location of Zion (-6) 2484 | -10/Subcaves | Visited 4L-MR0's lab 2493 | -10/Subcaves | Core integrity fell below 50% 2514 | -10/Subcaves | Core integrity fell below 20% 2571 | -10/Subcaves | Found Rainbow Chip 2629 | -10/Subcaves | Shifting Twisted Machinery released Mak. Sword 2646 | -10/Subcaves | Destroyed by FM-1MD(R) with Subdweller Machine Gun Last Messages --------------- >>Proto ID Catalog Downloading prototype IDs... Meta Core Arachnoskeleton Cargo Legs Tripod Weapons Platform Hoverbase Flightbrick Gun Armor Tower Shield Power Bank Rainbow Chip Procsplitter VL-GR5's Exoskeleton "Deathgrip" Powered Cannon 02565_ Testing Chamber breached. 02571_ Acquired Rainbow Chip. Mak. Sword falls loose from the Twisted Machinery. 02645_ FM-1MD(R) knocked back. Map ----- +----------------------------------------------------+ | ?????????????????????????????????????????????????? | | ?????????????????????????????????????????????????? | | ?????????????????????????????????????????????????? | | ?????????????????????????????????????????????????? | | ?????????????????????????????????????????????????? | | ?????????????????????????????????????????????????? | | ?????????????????????????????????????????????????? | | ?????????????????????????????????????????????????? | | ?????????????????????????????????????????????????? | | ?????????????????????????????????????????????????? | | ?????????????????????????????????????????????????? | | ????????????????????????????#####????????????????? | | ???????????????????##########" ##???????????????? | | ???????????????????# / !!##" &"#???????????????? | | ???????????????????### !# ""#???????????????? | | #??????????????????#"""X" "=&" "#???????????????? | | #??????????????????#"""""""#& """#???????????????? | | #??????????????????##########* " #???????????????? | | ???????????????????????????# """#???????????????? | | ?????????????????????####### "" #???????????????? | | ?????????????????????# # " ##???????????????? | | ?????????????????????### "#????????????????? | | ??????????????????????# ## ##????????????????? | | ????????????########### <#######???????????????? | | ???????????## # ## ##%< ### ###?????????????? | | ???????????# R @ # #?????????????? | | #####??????# %#### #?????????????? | | ## ####??## # #??# #?????????????? | | #??# ## ######## #????????????? | | ! ##### ## #??## ##????????????? | | !### # # ### #???### #?????????????? | | ### # ##??# #????## #????????????? | | ??## # "#??? "???? ???????????? | | ??# # # # #####"#??? "" ??? ??????????? | | ??######## #???# #???? """ #?? ?????????? | | ?????????## ##???# #????""" / #??# ???????? | | ??????????## #????# ##???""######???######???????? | | ???????????# #???## "##"####?????????????????????? | | ??????????## ##### ""#???????????????????????? | | ??????????# " ""#???????????????????????? | | ??????????# ##### ##"""??????????????????????? | | ??????????# #????##??" ????????>?????????????? | | ??????????# #???????????????????????????????? | | ????????? #???????????????????????????????? | | ??????? ## #???????????????????????????????? | | ????? # ### #???????????????????????????????? | | ??? ?####?? " ???????????????????????????????? | | ?? ###???????? ""]#??????????????????????????????? | | ?????????????? "#??????????????????????????????? | | ?????????????? "#??????????????????????????????? | +----------------------------------------------------+ Best States ------------- Heat Dissipation 25 Energy Generation 12 Energy Capacity 265 Matter Stores 300 Matter Capacity 300 Sight Range 16 Robot Scan Range 14 Terrain Scan Density 10 Armor Coverage 80 Evasion (%) 42 Recoil Reduction 2 Trap Extractor Capacity 4 Item Schematics ----------------- None Robot Schematics ------------------ None Fabricated ------------ Nothing Repaired ---------- Nothing Studied --------- None Alien Tech Used ----------------- None Achievements -------------- None Challenges ------------ None Game ------ Seed SignalElectrostormDrive Manual? 0 Play Time 00:15:59 Cumulative 743.0 hours Start 2026.04.25 @ 00:39:28 End 2026.04.25 @ 00:54:12 Sessions 1 Manual Loads 0 Difficulty Rogue Special Mode None Game No. 216 Rogue 216 Adventurer 0 Explorer 0 Win Type - Total 28 Types 10/3/7/1/1/0/2/1/1/2 Lore% 95 Gallery% 87 Achievement% 81 Wizard Run 0 Options --------- Layout 1 ASCII 0 Keyboard 0 Movement Mouse Keybinds 0 Fullscreen 2 Font 32/SmallcapsGlow Map View 50x35 Zoom Use 0% Tactical HUD 1 Map Filters NONE Filters NONE Steam 1 RUN: 29f14f09-97bb-4e93-8004-d6726c6a95f3